bitfinex/quotes_SOLUSD_20250301
["timestamp","ask_amount","ask_price","bid_price","bid_amount"]
[1740807361229,5.4865,145.81,145.79,103.64964886]
[1740807362044,5.4865,145.81,145.77,2.0]
[1740807362228,5.4865,145.81,145.76,2.0]
[1740807362424,20.0,145.77,145.75,0.063]
[1740807362625,87.0546,145.8,145.71,2.0]
[1740807362626,21.6533,145.76,145.71,2.0]
[1740807362834,20.0,145.75,145.7,81.0]
[1740807363143,6.3546,145.74,145.69,0.03]
[1740807363343,20.0,145.71,145.69,0.03]
[1740807363731,1.6533,145.7,145.69,0.03]
[1740807364125,7.144,145.7,145.69,0.03]
[1740807367751,1.6533,145.7,145.69,0.03]
[1740807370229,1.6533,145.7,145.69,2.03]
[1740807370430,80.7,145.73,145.69,2.03]
[1740807370631,11.8439,145.74,145.7,2.0]
[1740807372135,11.8439,145.74,145.69,2.03]
[1740807372336,11.8439,145.74,145.69,0.03]
[1740807372539,20.0,145.71,145.69,0.03]
[1740807373249,1.5371,145.76,145.73,2.0]
[1740807373433,1.5371,145.76,145.74,2.0]
[1740807373837,6.4,145.78,145.74,2.0]
[1740807374245,6.4,145.78,145.75,2.0]
[1740807374433,0.03,145.78,145.77,2.0]
[1740807377257,20.0,145.77,145.74,2.0]
[1740807377642,20.0,145.77,145.75,2.0]
[1740807378665,0.03,145.78,145.76,2.0]
[1740807379035,0.03,145.78,145.77,2.0]
[1740807380444,0.03,145.78,145.77,4.0]
[1740807380642,0.03,145.78,145.77,22.64964886]
[1740807380842,0.03,145.78,145.77,103.64964886]
[1740807381257,0.03,145.78,145.77,109.13764886]
[1740807381456,0.03,145.78,145.77,103.64964886]
[1740807383850,0.03,145.78,145.77,109.13764886]
[1740807385062,0.03,145.78,145.77,247.13764886]
[1740807385569,0.03,145.78,145.77,241.64964886]
[1740807386270,0.03,145.78,145.77,247.13764886]
[1740807387164,0.03,145.78,145.77,241.64964886]
[1740807387761,0.03,145.78,145.77,247.82964886]
[1740807388150,0.03,145.78,145.77,253.31764886]
[1740807389365,0.03,145.78,145.77,247.82964886]
[1740807392546,0.03,145.78,145.77,253.31764886]
[1740807393047,0.03,145.78,145.77,247.82964886]
[1740807393595,0.03,145.78,145.77,241.64964886]
[1740807396584,0.03,145.78,145.77,247.13764886]
[1740807396771,0.03,145.81,145.8,24.0]
[1740807396972,0.03,145.81,145.8,267.80964886]
[1740807398483,0.03,145.81,145.8,273.29654886]
[1740807398687,0.03,145.81,145.8,253.29654886]
[1740807405885,113.84142385,145.89,145.87,2.0]
[1740807406989,113.84142385,145.89,145.87,4.0]
[1740807410592,20.0,145.87,145.86,2.0]
[1740807410888,20.0,145.87,145.85,2.0]
[1740807411468,20.0,145.87,145.84,85.0]
[1740807411690,20.0,145.86,145.85,2.0]
[1740807412466,20.0,145.86,145.84,2.0]
[1740807412467,25.4847,145.86,145.84,2.0]
[1740807412662,25.4847,145.86,145.83,2.0]
[1740807414487,25.4847,145.86,145.82,81.0]
[1740807414688,39.1964,145.86,145.82,81.0]
[1740807414879,39.1964,145.86,145.82,83.0]
[1740807415078,39.1964,145.86,145.83,2.0]
[1740807415272,39.1964,145.86,145.82,81.0]
[1740807415579,39.1964,145.86,145.82,83.0]
[1740807416078,39.1964,145.86,145.83,0.063]
[1740807416490,39.1964,145.86,145.83,2.063]
[1740807417294,39.1964,145.86,145.83,0.063]
[1740807417999,39.1964,145.86,145.83,2.063]
[1740807418176,25.4847,145.86,145.83,4.063]
[1740807418379,25.4847,145.86,145.83,2.063]
[1740807418572,25.4847,145.86,145.83,0.063]
[1740807418766,39.1964,145.86,145.83,0.063]
[1740807419071,1.5424,145.85,145.83,0.063]
[1740807419584,1.5424,145.85,145.78,81.0]
[1740807419899,20.0,145.81,145.78,2.0]
[1740807420198,20.0,145.8,145.77,4.0]
[1740807420389,5.4873,145.79,145.77,4.0]
[1740807420583,5.4873,145.79,145.78,4.0]
[1740807420780,5.4873,145.79,145.78,2.0]
[1740807420982,5.4873,145.79,145.77,4.0]
[1740807421181,5.4873,145.79,145.77,2.0]
[1740807421498,5.4873,145.79,145.77,4.0]
[1740807421898,5.4873,145.79,145.78,2.0]
[1740807422196,20.0,145.79,145.78,4.0]
[1740807424402,25.4873,145.79,145.78,4.0]
[1740807424606,25.4873,145.79,145.78,2.0]
[1740807424779,25.4873,145.79,145.78,4.0]
[1740807427503,5.4862,145.82,145.79,2.0]
[1740807427701,5.4862,145.82,145.81,4.0]
[1740807428399,20.0,145.82,145.81,4.0]
[1740807428583,5.4854,145.84,145.83,2.0]
[1740807429585,5.4854,145.84,145.83,4.0]
[1740807429791,121.0852,145.85,145.84,2.0]
[1740807430412,121.0852,145.85,145.84,4.0]
[1740807431801,20.0,145.85,145.84,4.0]
[1740807433407,5.4839,145.88,145.87,2.0]
[1740807433622,5.4839,145.88,145.87,4.0]
[1740807433813,5.5137,145.89,145.88,4.0]
[1740807434120,0.03,145.89,145.88,4.0]
[1740807434497,5.5135,145.89,145.88,4.0]
[1740807435214,0.03,145.89,145.88,4.0]
[1740807435586,20.03,145.89,145.88,4.0]
[1740807436415,0.03,145.89,145.88,4.0]
[1740807436614,0.03,145.89,145.88,22.64964886]
[1740807437311,0.03,145.89,145.88,103.64964886]
[1740807439938,0.03,145.89,145.88,247.13354886]
[1740807440228,0.03,145.89,145.88,253.29354886]
[1740807441846,0.063,145.91,145.9,4.0]
[1740807442012,0.063,145.92,145.91,2.0]
[1740807442319,0.063,145.92,145.91,24.08816061]
[1740807443734,0.063,145.92,145.91,243.08816061]
[1740807443926,0.063,145.92,145.91,249.13244886]
[1740807445341,0.063,145.93,145.92,6.0]
[1740807445512,0.063,145.93,145.92,4.0]
[1740807445718,0.063,145.93,145.92,223.0]
[1740807446717,0.063,145.93,145.92,241.64964886]
[1740807448031,0.063,145.93,145.92,245.07769826]
[1740807448427,0.063,145.93,145.92,250.56009826]
[1740807449833,0.063,145.93,145.92,241.64964886]
[1740807450613,0.063,145.93,145.92,221.0]
[1740807450922,0.063,145.93,145.92,223.0]
[1740807453022,0.063,145.93,145.92,103.64964886]
[1740807453736,0.063,145.93,145.92,109.13204886]
[1740807456345,0.063,145.93,145.92,247.13204886]
[1740807459332,0.063,145.93,145.92,250.54016278]
[1740807459531,0.063,145.94,145.93,20.64964886]
[1740807459727,0.063,145.94,145.93,245.08783897]
[1740807459923,0.063,145.94,145.93,243.64964886]
[1740807460122,0.03,145.96,145.94,124.31964886]
[1740807460345,0.03,145.96,145.95,18.64964886]
[1740807460836,0.0001,145.96,145.95,266.31964886]
[1740807461039,0.03,146.0,145.99,42.64964886]
[1740807461248,0.03,146.0,145.99,247.80964886]
[1740807462348,0.03,146.0,145.99,273.95944886]
[1740807462551,0.03,146.0,145.99,247.80964886]
[1740807464735,5.0379,146.04,146.0,4.0]
[1740807464934,5.0379,146.04,145.99,85.0]
[1740807465144,18.7327,146.04,145.99,85.0]
[1740807465447,18.7327,146.04,145.99,83.0]
[1740807465843,1.5116,146.0,145.96,2.0]
[1740807466039,1.5116,146.0,145.96,81.0]
[1740807466230,5.4798,145.99,145.96,83.0]
[1740807466425,5.4798,145.99,145.94,4.0]
[1740807466627,20.0,145.96,145.94,83.0]
[1740807466847,20.0,145.96,145.94,85.0]
[1740807467052,20.0,145.96,145.94,83.0]
[1740807467255,20.0,145.96,145.94,85.0]
[1740807467556,20.0,145.96,145.94,83.0]
[1740807468228,5.4813,145.95,145.94,83.0]
[1740807469049,5.4813,145.95,145.94,53.2141]
[1740807469350,20.0,145.92,145.91,24.4082]
[1740807469554,20.0,145.92,145.91,0.063]
[1740807470130,25.4824,145.92,145.91,0.063]
[1740807472958,13.4273,145.94,145.91,4.063]
[1740807474961,13.4273,145.94,145.91,2.063]
[1740807475154,13.4273,145.94,145.91,0.063]
[1740807475351,20.0,145.92,145.91,0.063]
[1740807475552,20.0,145.92,145.91,0.0001]
[1740807477166,25.4824,145.92,145.91,0.0001]
[1740807480453,66.6007,145.92,145.85,2.0]
[1740807480654,20.0,145.88,145.85,2.0]
[1740807482769,5.4843,145.87,145.85,2.0]
[1740807483169,5.4843,145.87,145.86,2.0]
[1740807486772,5.4843,145.87,145.86,2.063]
[1740807487175,5.4843,145.87,145.86,0.063]
[1740807488368,32.82640091,145.92,145.88,2.0]
[1740807488369,5.41420091,145.92,145.88,2.0]
[1740807488562,5.482,145.93,145.88,4.0]
[1740807489657,20.0,145.9,145.88,2.0]
[1740807489867,20.0,145.9,145.86,26.4082]
[1740807490378,20.0,145.9,145.86,28.4082]
[1740807490675,20.0,145.9,145.87,2.0]
[1740807491063,20.0,145.9,145.88,4.0]
[1740807491674,20.0,145.9,145.89,2.0]
[1740807493458,20.0,145.9,145.88,2.0]
[1740807493864,20.0,145.9,145.87,4.0]
[1740807494582,25.4832,145.9,145.88,2.0]
[1740807494951,25.4832,145.9,145.87,4.0]
[1740807495476,25.4832,145.9,145.86,24.4082]
[1740807496977,25.4832,145.9,145.86,0.063]
[1740807497160,39.1912,145.9,145.86,0.063]
[1740807498387,1.5258,145.89,145.86,0.063]
[1740807499258,5.4839,145.88,145.86,0.063]
[1740807500470,5.4839,145.88,145.85,0.063]
[1740807500471,20.0,145.86,145.85,0.063]
[1740807500866,20.0,145.85,145.83,0.063]
[1740807501473,5.4854,145.84,145.83,0.063]
[1740807503861,25.4852,145.85,145.83,0.063]
[1740807506287,20.0,145.85,145.83,4.063]
[1740807506585,25.485,145.85,145.84,2.0]
[1740807507901,25.485,145.85,145.83,4.063]
[1740807508594,25.485,145.85,145.83,0.063]
[1740807511198,25.485,145.85,145.83,2.063]
[1740807511492,20.0,145.85,145.83,4.063]
[1740807511666,20.0,145.85,145.84,0.063]
[1740807511869,25.485,145.85,145.84,0.063]
[1740807512993,5.4839,145.88,145.84,2.063]
[1740807513198,20.0,145.86,145.85,2.0]
[1740807516406,20.0,145.87,145.85,2.0]
[1740807516580,5.4847,145.86,145.85,2.0]
[1740807517002,5.4847,145.86,145.84,28.4082]
[1740807517381,5.4847,145.86,145.84,24.4082]
[1740807518402,5.4843,145.87,145.84,26.4082]
[1740807518975,5.4843,145.87,145.84,24.4082]
[1740807519304,5.4843,145.87,145.84,26.4082]
[1740807520007,5.4843,145.87,145.84,28.4082]
[1740807520200,20.0,145.88,145.86,2.0]
[1740807520401,115.61,145.91,145.88,2.0]
[1740807520572,5.4832,145.9,145.88,2.0]
[1740807522908,5.4832,145.9,145.87,4.0]
[1740807523111,5.4832,145.9,145.88,2.0]
[1740807524115,5.5132,145.9,145.88,2.0]
[1740807525216,5.5132,145.9,145.88,4.0]
[1740807525217,0.03,145.9,145.88,4.0]
[1740807525587,20.0,145.89,145.88,4.0]
[1740807527821,20.0,145.89,145.88,2.0]
[1740807528120,20.0,145.89,145.88,4.0]
[1740807534128,5.4835,145.89,145.88,2.0]
[1740807534425,5.4835,145.89,145.87,2.0]
[1740807534898,5.4835,145.89,145.86,2.0]
[1740807535098,5.4835,145.89,145.84,164.4082]
[1740807535417,5.4835,145.89,145.84,26.4082]
[1740807535611,20.0,145.86,145.84,26.4082]
[1740807535923,20.0,145.86,145.85,0.063]
[1740807536302,25.4847,145.86,145.85,0.063]
[1740807539223,20.0,145.86,145.85,0.063]
[1740807540433,20.0,145.85,145.84,3.126]
[1740807541322,5.4839,145.88,145.85,1.126]
[1740807541525,115.57,145.89,145.87,1.126]
[1740807541722,121.0535,145.89,145.87,1.126]
[1740807542328,115.57,145.89,145.87,1.126]
[1740807542625,115.57,145.89,145.87,3.126]
[1740807542828,5.4839,145.88,145.85,1.126]
[1740807543323,5.4839,145.88,145.83,1.189]
[1740807543506,86.1839,145.88,145.84,1.126]
[1740807545130,20.0,145.85,145.83,0.063]
[1740807545313,20.0,145.85,145.83,1.189]
[1740807545913,20.0,145.85,145.83,0.063]
[1740807546119,20.0,145.84,145.83,0.063]
[1740807547025,25.4854,145.84,145.83,0.063]
[1740807547527,20.0,145.84,145.83,1.189]
[1740807547717,5.4853,145.85,145.83,1.189]
[1740807547923,5.4853,145.85,145.84,1.126]
[1740807548218,5.4848,145.86,145.85,1.126]
[1740807550533,20.0,145.84,145.83,0.063]
[1740807552426,25.4854,145.84,145.83,0.063]
[1740807553124,31.6454,145.84,145.83,0.0001]
[1740807559220,112.3454,145.84,145.83,0.0001]
[1740807559422,113.2194,145.84,145.83,0.0001]
[1740807559838,51.16904886,145.84,145.83,0.0001]
[1740807560124,57.59382946,145.84,145.83,0.0001]
[1740807563055,0.874,145.81,145.78,0.063]
[1740807563844,5.4869,145.8,145.78,0.063]
[1740807565651,5.4869,145.8,145.78,1.189]
[1740807565957,20.0,145.79,145.78,1.189]
[1740807566550,5.4862,145.82,145.78,1.189]
[1740807566752,5.4862,145.82,145.79,1.126]
[1740807567252,20.0,145.8,145.79,1.126]
[1740807567746,5.4862,145.82,145.8,1.126]
[1740807567951,5.4862,145.82,145.79,1.126]
[1740807568151,5.4867,145.81,145.78,1.189]
[1740807568541,5.4867,145.81,145.79,1.126]
[1740807571056,20.0,145.8,145.79,1.126]
[1740807571354,5.4862,145.82,145.8,1.126]
[1740807572653,5.4862,145.82,145.81,1.126]
[1740807574259,20.0,145.82,145.81,1.126]
[1740807577159,25.4862,145.82,145.81,1.126]
[1740807577460,25.4862,145.82,145.8,0.063]
[1740807583594,42.57080197,145.82,145.78,0.063]
[1740807583809,123.27080197,145.82,145.78,0.063]
[1740807583959,124.14480197,145.82,145.78,0.063]
[1740807584766,123.27080197,145.82,145.78,0.063]
[1740807586076,119.9017,145.82,145.78,0.689]
[1740807586980,39.2017,145.82,145.78,0.752]
[1740807596099,39.2017,145.82,145.78,0.063]
[1740807597278,6.14,145.81,145.77,0.063]
[1740807597495,20.0,145.78,145.77,0.063]
[1740807597700,80.7,145.79,145.77,0.063]
[1740807598602,5.4877,145.78,145.77,0.063]
[1740807603777,86.1874,145.79,145.77,0.752]
[1740807603984,0.03,145.82,145.77,0.752]
[1740807604206,20.0,145.78,145.77,0.752]
[1740807604500,5.4865,145.81,145.77,0.752]
[1740807605105,5.4865,145.81,145.77,2.752]
[1740807605408,5.4865,145.81,145.78,0.689]
[1740807605604,20.0,145.79,145.78,0.689]
[1740807607796,25.4873,145.79,145.77,0.063]
[1740807609312,25.43654326,145.79,145.77,0.063]
[1740807610325,25.46654326,145.79,145.77,0.063]
[1740807612324,34.57534326,145.79,145.77,0.0001]
[1740807612626,20.0,145.75,145.72,0.063]
[1740807612801,20.0,145.73,145.72,0.063]
[1740807613003,25.4896,145.73,145.72,0.063]
[1740807618207,80.7,145.76,145.73,0.689]
[1740807618208,5.4888,145.75,145.73,0.689]
[1740807618419,86.1885,145.76,145.73,0.689]
[1740807618825,5.4881,145.77,145.73,2.689]
[1740807619020,5.4881,145.77,145.74,0.689]
[1740807620323,20.0,145.75,145.74,2.0]
[1740807620503,20.0,145.75,145.74,0.689]
[1740807620903,20.0,145.75,145.74,2.689]
[1740807621328,20.0,145.75,145.74,0.689]
[1740807621818,20.0,145.75,145.74,2.719]
[1740807622702,5.4881,145.77,145.75,2.689]
[1740807622904,5.4881,145.77,145.75,0.689]
[1740807623226,5.4881,145.77,145.75,2.689]
[1740807623427,5.4881,145.77,145.75,0.689]
[1740807623633,5.4881,145.77,145.75,2.689]
[1740807623923,20.0,145.76,145.75,2.689]
[1740807624825,0.063,145.78,145.75,2.689]
[1740807630329,0.063,145.78,145.77,0.689]
[1740807630928,0.063,145.78,145.76,2.689]
[1740807631109,0.063,145.78,145.75,2.689]
[1740807631303,0.063,145.78,145.74,24.3752]
[1740807631526,20.0,145.75,145.74,0.03]
[1740807632507,25.4888,145.75,145.74,0.03]
[1740807632924,39.2109,145.75,145.72,0.063]
[1740807633225,119.9109,145.75,145.72,0.063]
[1740807634435,1.311,145.74,145.72,0.063]
[1740807634731,80.7,145.73,145.72,0.0001]
[1740807635031,82.011,145.73,145.72,0.0001]
[1740807635539,85.41892562,145.73,145.72,0.0001]
[1740807636614,10.20852562,145.73,145.72,0.0001]
[1740807639052,20.0,145.7,145.69,0.03]
[1740807640839,25.4907,145.7,145.69,0.03]
[1740807647347,25.4907,145.7,145.68,0.063]
[1740807647523,106.1907,145.7,145.68,0.063]
[1740807651952,80.7,145.69,145.66,0.03]
[1740807652249,20.0,145.66,145.63,0.03]
[1740807652436,1.311,145.67,145.63,0.03]
[1740807652437,20.0,145.65,145.63,0.03]
[1740807653848,5.4929,145.64,145.61,0.689]
[1740807654941,25.4927,145.65,145.63,0.689]
[1740807656546,3.40462098,145.69,145.65,0.689]
[1740807657352,20.0,145.67,145.65,0.689]
[1740807657555,25.4919,145.67,145.64,0.689]
[1740807657738,25.4919,145.67,145.65,0.689]
[1740807658955,25.4919,145.67,145.64,0.689]
[1740807659140,25.4919,145.67,145.65,0.689]
[1740807661143,25.4919,145.67,145.64,0.689]
[1740807661344,25.4919,145.67,145.63,0.689]
[1740807661859,25.4919,145.67,145.62,24.3752]
[1740807662160,39.2215,145.67,145.62,0.03]
[1740807663947,39.2215,145.67,145.62,0.719]
[1740807664450,39.2215,145.67,145.62,0.03]
[1740807664840,39.2215,145.67,145.62,0.719]
[1740807665448,39.2215,145.67,145.63,0.689]
[1740807665766,25.4919,145.67,145.64,0.689]
[1740807666573,20.0,145.67,145.64,2.689]
[1740807666744,115.72,145.69,145.65,0.689]
[1740807666950,121.2112,145.69,145.67,0.689]
[1740807667883,121.2112,145.69,145.66,2.689]
[1740807668269,121.2112,145.69,145.67,0.689]
[1740807669086,121.2112,145.69,145.66,2.689]
[1740807669263,121.2112,145.69,145.67,0.689]
[1740807670254,115.72,145.69,145.68,2.689]
[1740807670450,115.72,145.69,145.67,5.4918]
[1740807670451,0.063,145.7,145.69,2.689]
[1740807673373,0.063,145.7,145.69,0.689]
[1740807673575,20.063,145.7,145.66,25.0342]
[1740807673750,20.063,145.7,145.66,27.0342]
[1740807673949,20.063,145.7,145.66,24.3452]
[1740807673950,5.4911,145.69,145.66,24.3452]
[1740807674151,20.0,145.67,145.65,0.689]
[1740807674360,20.0,145.67,145.65,2.689]
[1740807674568,20.0,145.67,145.66,2.0]
[1740807674959,20.0,145.69,145.66,2.0]
[1740807675162,25.4911,145.69,145.66,2.689]
[1740807675654,20.0,145.69,145.67,0.689]
[1740807675857,20.0,145.69,145.68,0.689]
[1740807676395,0.063,145.7,145.69,2.689]
[1740807676678,20.063,145.7,145.69,2.689]
[1740807676978,0.063,145.7,145.69,2.689]
[1740807677676,0.063,145.7,145.69,0.689]
[1740807678671,0.063,145.7,145.69,19.33864886]
[1740807678874,0.063,145.7,145.69,0.689]
[1740807682360,0.063,145.7,145.69,32.83214886]
[1740807685383,0.063,145.7,145.69,251.83214886]
[1740807686186,0.063,145.7,145.69,246.34104886]
[1740807686678,0.063,145.7,145.69,81.0]
[1740807687786,0.063,145.7,145.69,81.689]
[1740807688084,0.063,145.7,145.69,81.0]
[1740807688690,0.063,145.7,145.68,0.689]
[1740807688892,0.063,145.7,145.67,0.689]
[1740807689066,0.063,145.7,145.68,0.689]
[1740807691497,0.063,145.7,145.67,0.689]
[1740807691664,0.063,145.7,145.68,0.689]
[1740807697393,5.554,145.7,145.68,0.689]
[1740807699388,0.063,145.7,145.68,0.689]
[1740807699606,0.063,145.7,145.69,0.689]
[1740807700096,20.063,145.7,145.69,0.689]
[1740807700577,20.063,145.7,145.68,0.689]
[1740807700772,20.0,145.69,145.66,81.03]
[1740807701397,20.0,145.69,145.66,81.719]
[1740807701692,5.4914,145.68,145.67,0.689]
[1740807701883,5.4914,145.68,145.66,81.719]
[1740807702290,5.5537,145.7,145.68,0.689]
[1740807702594,5.5537,145.7,145.66,81.03]
[1740807702807,1.6013,145.69,145.66,0.03]
[1740807703595,5.4914,145.68,145.66,0.03]
[1740807714798,86.1914,145.68,145.66,0.03]
[1740807718306,20.0,145.65,145.63,0.03]
[1740807719095,25.4929,145.65,145.63,0.03]
[1740807724797,29.01916663,145.65,145.63,0.03]
[1740807726914,29.01916663,145.65,145.59,3.9263695]
[1740807727219,42.75066663,145.65,145.59,3.9263695]
[1740807728321,42.75066663,145.65,145.63,0.03]
[1740807728500,123.45066663,145.65,145.63,0.03]
[1740807729719,109.71916663,145.65,145.63,0.03]
[1740807734226,25.4929,145.65,145.63,0.719]
[1740807734528,25.4929,145.65,145.63,0.03]
[1740807734909,25.4929,145.65,145.63,0.719]
[1740807735421,25.4929,145.65,145.63,0.03]
[1740807735620,25.4929,145.65,145.63,0.719]
[1740807735823,25.4929,145.65,145.63,0.03]
[1740807736419,25.4929,145.65,145.63,0.719]
[1740807743128,107.5039,145.65,145.63,0.03]
[1740807743424,115.6439,145.65,145.63,0.03]
[1740807744628,114.3329,145.65,145.63,0.03]
[1740807745417,112.3329,145.65,145.63,0.03]
[1740807745822,115.83129094,145.65,145.63,0.03]
[1740807750330,117.14229094,145.65,145.63,0.03]
[1740807750815,119.14229094,145.65,145.63,0.03]
[1740807752438,115.83129094,145.65,145.63,0.03]
[1740807752730,95.83129094,145.65,145.63,0.03]
[1740807753329,15.13129094,145.65,145.63,0.03]
[1740807756847,8.99129094,145.65,145.63,0.03]
[1740807758142,5.4929,145.65,145.63,0.03]
[1740807762826,5.5559,145.65,145.63,0.03]
[1740807780638,20.5984,145.65,145.59,84.9563695]
[1740807780838,80.7,145.64,145.59,3.9563695]
[1740807781660,19.2267,145.63,145.59,3.9563695]
[1740807782657,5.4933,145.63,145.61,0.689]
[1740807783039,0.063,145.65,145.62,0.689]
[1740807785159,0.063,145.65,145.63,0.689]
[1740807785361,0.063,145.65,145.64,0.689]
[1740807786757,0.063,145.65,145.63,0.689]
[1740807786949,0.063,145.65,145.64,0.689]
[1740807798175,0.063,145.65,145.63,0.689]
[1740807799481,0.063,145.65,145.64,0.689]
[1740807799780,0.063,145.65,145.63,0.689]
[1740807800268,0.063,145.65,145.64,0.689]
[1740807810172,5.5556,145.65,145.64,0.689]
[1740807810498,5.5556,145.65,145.63,0.03]
[1740807810693,5.5556,145.65,145.63,0.719]
[1740807811196,5.5556,145.65,145.59,3.2673695]
[1740807811197,1.311,145.63,145.59,3.2673695]
[1740807811406,80.7,145.62,145.59,3.2673695]
[1740807811915,6.0103,145.59,145.54,0.03]
[1740807812067,1.5401,145.53,145.48,11.29410309]
[1740807812268,39.2413,145.52,145.49,0.689]
[1740807812886,5.4975,145.52,145.5,0.689]
[1740807813295,121.88,145.53,145.49,0.689]
[1740807813592,121.88,145.53,145.48,8.45915309]
[1740807813593,80.7,145.52,145.48,8.45915309]
[1740807814201,25.5401,145.49,145.48,1.4342546]
[1740807814404,20.0,145.46,145.45,64.6712394]
[1740807814593,86.84,145.47,145.45,64.6712394]
[1740807814902,6.14,145.47,145.45,64.6712394]
[1740807815577,20.0,145.46,145.45,64.6712394]
[1740807815994,20.0,145.46,145.45,60.58998715]
[1740807816494,20.0,145.46,145.45,47.57801811]
[1740807816785,6.14,145.46,145.45,47.57801811]
[1740807816991,6.14,145.46,145.41,18.64964886]
[1740807817180,5.46416253,145.49,145.41,105.89144886]
[1740807817383,3.51504571,145.5,145.41,107.51644886]
[1740807817781,12.1503,145.51,145.41,107.51644886]
[1740807817984,122.7772,145.53,145.41,245.01644886]
[1740807817985,121.88,145.53,145.41,245.01644886]
[1740807818185,127.38149193,145.53,145.41,250.51794886]
[1740807818387,127.38149193,145.53,145.41,252.51794886]
[1740807818592,121.88,145.53,145.42,2.0]
[1740807818787,121.88,145.53,145.41,252.51794886]
[1740807818990,127.47014574,145.53,145.41,245.01644886]
[1740807819176,80.7,145.52,145.41,245.01644886]
[1740807819495,80.7,145.52,145.41,250.51804886]
[1740807819496,20.0,145.49,145.41,250.51804886]
[1740807820069,80.7,145.52,145.41,250.51804886]
[1740807820273,80.7,145.52,145.43,18.64964886]
[1740807821786,80.7,145.52,145.43,105.15044886]
[1740807822492,115.74,145.53,145.45,18.64964886]
[1740807822676,115.74,145.53,145.45,237.64964886]
[1740807823697,115.74,145.53,145.47,18.64964886]
[1740807824877,115.74,145.53,145.47,5.4994]
[1740807827403,115.74,145.53,145.48,18.64964886]
[1740807828098,115.74,145.53,145.48,106.78654886]
[1740807828289,115.74,145.53,145.49,6.596]
[1740807828688,115.74,145.53,145.5,18.64964886]
[1740807830380,115.74,145.53,145.5,24.14774886]
[1740807831002,115.74,145.53,145.48,88.1369]
[1740807831605,115.74,145.53,145.48,81.0]
[1740807831996,115.74,145.53,145.48,86.499]
[1740807834391,115.74,145.53,145.5,5.4982]
[1740807836513,115.74,145.53,145.49,18.64964886]
[1740807837589,5.4967,145.55,145.49,18.64964886]
[1740807838089,20.0,145.52,145.48,87.0771]
[1740807840687,20.0,145.53,145.48,63.12632729]
[1740807840892,20.0,145.52,145.48,63.12632729]
[1740807841301,20.0,145.52,145.48,57.04922729]
[1740807842395,20.0,145.51,145.48,57.04922729]
[1740807845522,20.0,145.51,145.46,18.64964886]